[Event "*** Titled Tuesday Blitz"]
[Site "Chess.com"]
[Date "2020.02.04"]
[Round "9"]
[White "arjwezhrtdrz"]
[Black "semchik73"]
[Result "1-0"]
[WhiteElo "2251"]
[BlackElo "2291"]
[TimeControl "180+2"]
[EndTime "15:04:57 PST"]
[Termination "arjwezhrtdrz won by resignation"]

1. e4 {[%clk 0:02:58.3]} 1... Nf6 {[%clk 0:03:00.4]} 2. Nc3 {[%clk 0:02:59.2]}
2... d5 {[%clk 0:03:00.9]} 3. exd5 {[%clk 0:02:59.3]} 3... Nxd5 {[%clk
0:03:02.4]} 4. Bc4 {[%clk 0:03:00.9]} 4... e6 {[%clk 0:03:02.7]} 5. Nf3 {[%clk
0:03:01.6]} 5... Be7 {[%clk 0:03:03.3]} 6. d4 {[%clk 0:03:02.7]} 6... c6 {[%clk
0:03:04.6]} 7. O-O {[%clk 0:03:03.5]} 7... O-O {[%clk 0:03:06]} 8. Ne4 {[%clk
0:03:04.8]} 8... Nd7 {[%clk 0:03:04.4]} 9. c3 {[%clk 0:03:05.3]} 9... Qc7 {[%clk
0:03:04.1]} 10. Re1 {[%clk 0:03:05.2]} 10... N7f6 {[%clk 0:03:01.6]} 11. Ng3
{[%clk 0:03:05.5]} 11... b5 {[%clk 0:02:58.7]} 12. Bd3 {[%clk 0:03:06.2]} 12...
Bb7 {[%clk 0:02:58.3]} 13. Ne5 {[%clk 0:03:07.2]} 13... a6 {[%clk 0:02:56.1]}
14. Qe2 {[%clk 0:03:06.7]} 14... c5 {[%clk 0:02:56.4]} 15. dxc5 {[%clk 0:03:05]}
15... Bxc5 {[%clk 0:02:54.9]} 16. Nh5 {[%clk 0:02:57.1]} 16... Nxh5 {[%clk
0:02:47.2]} 17. Qxh5 {[%clk 0:02:45.5]} 17... Nf6 {[%clk 0:02:41.7]} 18. Qh4
{[%clk 0:02:38.8]} 18... Bd6 {[%clk 0:02:39.6]} 19. Bg5 {[%clk 0:02:25.9]} 19...
Ne4 {[%clk 0:02:30]} 20. Bxe4 {[%clk 0:02:19.4]} 20... Bxe4 {[%clk 0:02:29.8]}
21. Qxe4 {[%clk 0:02:14.6]} 21... f6 {[%clk 0:02:31.1]} 22. Nf3 {[%clk 0:01:38]}
22... fxg5 {[%clk 0:02:30.8]} 23. Nxg5 {[%clk 0:01:36.7]} 23... Bxh2+ {[%clk
0:02:31.2]} 24. Kh1 {[%clk 0:01:37.5]} 24... g6 {[%clk 0:02:15.8]} 25. Nxe6
{[%clk 0:01:23.2]} 25... Qe7 {[%clk 0:02:14.9]} 26. Nxf8 {[%clk 0:01:19.6]} 1-0

[Event "*** Titled Tuesday Blitz"]
[Site "Chess.com"]
[Date "2020.02.04"]
[Round "9"]
[White "Jahonas"]
[Black "saraswathii"]
[Result "0-1"]
[WhiteElo "2385"]
[BlackElo "2237"]
[TimeControl "180+2"]
[EndTime "15:05:04 PST"]
[Termination "saraswathii won by resignation"]

1. d4 {[%clk 0:03:01.9]} 1... d5 {[%clk 0:02:55.9]} 2. Nf3 {[%clk 0:03:02.4]}
2... Bf5 {[%clk 0:02:55.4]} 3. c3 {[%clk 0:03:03.2]} 3... c6 {[%clk 0:02:54.7]}
4. Qb3 {[%clk 0:03:04.1]} 4... Qb6 {[%clk 0:02:54.7]} 5. Bf4 {[%clk 0:03:04.1]}
5... Nd7 {[%clk 0:02:51.9]} 6. Nbd2 {[%clk 0:03:05]} 6... e6 {[%clk 0:02:51.3]}
7. e3 {[%clk 0:03:06]} 7... Ngf6 {[%clk 0:02:50.4]} 8. Be2 {[%clk 0:03:05.3]}
8... Be7 {[%clk 0:02:49.8]} 9. O-O {[%clk 0:03:06]} 9... O-O {[%clk 0:02:50]}
10. a4 {[%clk 0:03:06.6]} 10... Ne4 {[%clk 0:02:41.5]} 11. a5 {[%clk 0:03:03.4]}
11... Qxb3 {[%clk 0:02:39.4]} 12. Nxb3 {[%clk 0:03:03.9]} 12... c5 {[%clk
0:02:40]} 13. Nbd2 {[%clk 0:02:57.3]} 13... cxd4 {[%clk 0:02:36.9]} 14. exd4
{[%clk 0:02:56.9]} 14... Rfc8 {[%clk 0:02:33.8]} 15. Nxe4 {[%clk 0:02:57]} 15...
Bxe4 {[%clk 0:02:29.2]} 16. Ne5 {[%clk 0:02:54.5]} 16... Nxe5 {[%clk 0:02:26.5]}
17. Bxe5 {[%clk 0:02:55.3]} 17... f6 {[%clk 0:02:15.7]} 18. Bf4 {[%clk
0:02:54.3]} 18... Kf7 {[%clk 0:02:08.9]} 19. a6 {[%clk 0:02:49.7]} 19... b6
{[%clk 0:02:02.6]} 20. Bb5 {[%clk 0:02:49.1]} 20... g5 {[%clk 0:01:46.7]} 21.
Bd2 {[%clk 0:02:45.7]} 21... e5 {[%clk 0:01:36.1]} 22. f3 {[%clk 0:02:33.1]}
22... Bg6 {[%clk 0:01:34.8]} 23. Be3 {[%clk 0:02:33.3]} 23... Rc7 {[%clk
0:01:31.2]} 24. Rfe1 {[%clk 0:02:32.5]} 24... Ke6 {[%clk 0:01:31.3]} 25. dxe5
{[%clk 0:02:25]} 25... fxe5 {[%clk 0:01:31.4]} 26. f4 {[%clk 0:02:23.6]} 26...
gxf4 {[%clk 0:01:30.4]} 27. Bxf4 {[%clk 0:02:20.8]} 27... Bd6 {[%clk 0:01:26.5]}
28. Rxe5+ {[%clk 0:02:09.5]} 28... Bxe5 {[%clk 0:01:26.6]} 29. Re1 {[%clk
0:02:03.9]} 29... Be4 {[%clk 0:01:26.4]} 0-1

[Event "*** Titled Tuesday Blitz"]
[Site "Chess.com"]
[Date "2020.02.04"]
[Round "9"]
[White "pawnwonder"]
[Black "Hadza_3"]
[Result "0-1"]
[WhiteElo "2157"]
[BlackElo "2403"]
[TimeControl "180+2"]
[EndTime "15:05:24 PST"]
[Termination "Hadza_3 won on time"]

1. e4 {[%clk 0:03:00.9]} 1... e5 {[%clk 0:02:56.6]} 2. Nf3 {[%clk 0:03:01.5]}
2... Nc6 {[%clk 0:02:57.6]} 3. Bb5 {[%clk 0:03:02.5]} 3... g6 {[%clk 0:02:58.6]}
4. O-O {[%clk 0:02:54.9]} 4... Bg7 {[%clk 0:02:59.5]} 5. c3 {[%clk 0:02:55.8]}
5... d6 {[%clk 0:02:53.5]} 6. d4 {[%clk 0:02:54.7]} 6... Bd7 {[%clk 0:02:53.8]}
7. d5 {[%clk 0:02:52.5]} 7... Nb8 {[%clk 0:02:54.6]} 8. Bxd7+ {[%clk 0:02:54.4]}
8... Nxd7 {[%clk 0:02:56.5]} 9. c4 {[%clk 0:02:55.3]} 9... Ne7 {[%clk
0:02:55.5]} 10. Nc3 {[%clk 0:02:53.4]} 10... O-O {[%clk 0:02:56.5]} 11. Be3
{[%clk 0:02:46.8]} 11... h6 {[%clk 0:02:57.2]} 12. Ne1 {[%clk 0:02:44.8]} 12...
f5 {[%clk 0:02:57]} 13. f3 {[%clk 0:02:45.2]} 13... Kh7 {[%clk 0:02:57.8]} 14.
Nd3 {[%clk 0:02:46.1]} 14... Rf7 {[%clk 0:02:59.1]} 15. Rc1 {[%clk 0:02:46.5]}
15... Qf8 {[%clk 0:03:00.4]} 16. b4 {[%clk 0:02:43.9]} 16... h5 {[%clk
0:03:01.1]} 17. c5 {[%clk 0:02:36.4]} 17... a6 {[%clk 0:02:56.1]} 18. cxd6
{[%clk 0:02:10.5]} 18... cxd6 {[%clk 0:02:58]} 19. Qd2 {[%clk 0:02:10.1]} 19...
Ng8 {[%clk 0:02:50]} 20. b5 {[%clk 0:01:54.5]} 20... Bh6 {[%clk 0:02:43.3]} 21.
Bxh6 {[%clk 0:01:53.4]} 21... Nxh6 {[%clk 0:02:45.2]} 0-1

[Event "*** Titled Tuesday Blitz"]
[Site "Chess.com"]
[Date "2020.02.04"]
[Round "9"]
[White "DamianoLew95"]
[Black "TigrVShlyape"]
[Result "0-1"]
[WhiteElo "2624"]
[BlackElo "2844"]
[TimeControl "180+2"]
[EndTime "15:06:00 PST"]
[Termination "TigrVShlyape won by resignation"]

1. d4 {[%clk 0:03:01.9]} 1... Nf6 {[%clk 0:02:59.7]} 2. Nf3 {[%clk 0:03:02.9]}
2... e6 {[%clk 0:03:01]} 3. Bf4 {[%clk 0:03:03.5]} 3... d5 {[%clk 0:02:58.2]} 4.
e3 {[%clk 0:03:04.2]} 4... Bd6 {[%clk 0:02:59.7]} 5. Nbd2 {[%clk 0:03:01]} 5...
O-O {[%clk 0:02:58.8]} 6. c3 {[%clk 0:03:01.2]} 6... b6 {[%clk 0:02:59.1]} 7.
Ne5 {[%clk 0:02:55.7]} 7... Nfd7 {[%clk 0:02:45.6]} 8. Bd3 {[%clk 0:02:48.6]}
8... Bxe5 {[%clk 0:02:39]} 9. dxe5 {[%clk 0:02:48.2]} 9... Ba6 {[%clk
0:02:39.5]} 10. Bc2 {[%clk 0:02:20.7]} 10... Nc5 {[%clk 0:02:39.3]} 11. Nf3
{[%clk 0:02:09.5]} 11... Ne4 {[%clk 0:02:32.5]} 12. h4 {[%clk 0:02:00.8]} 12...
Nd7 {[%clk 0:02:30.5]} 13. Ng5 {[%clk 0:01:58]} 13... h6 {[%clk 0:02:22.4]} 14.
Nxe4 {[%clk 0:01:54.9]} 14... dxe4 {[%clk 0:02:22.7]} 15. b4 {[%clk 0:01:13.5]}
15... f5 {[%clk 0:02:20.4]} 16. exf6 {[%clk 0:00:55.7]} 16... Qxf6 {[%clk
0:02:19.9]} 17. Qd4 {[%clk 0:00:44.9]} 17... Rad8 {[%clk 0:01:38.7]} 18. O-O-O
{[%clk 0:00:26]} 18... Qxd4 {[%clk 0:01:37.3]} 19. cxd4 {[%clk 0:00:25.5]} 19...
Nf6 {[%clk 0:01:36]} 20. Kb2 {[%clk 0:00:23.1]} 20... Nd5 {[%clk 0:01:35.8]} 21.
Be5 {[%clk 0:00:24]} 21... Rxf2 {[%clk 0:01:34.8]} 22. a3 {[%clk 0:00:22.5]}
22... Nxe3 {[%clk 0:01:34.7]} 0-1

[Event "*** Titled Tuesday Blitz"]
[Site "Chess.com"]
[Date "2020.02.04"]
[Round "9"]
[White "davigator"]
[Black "CM_Perligero"]
[Result "1-0"]
[WhiteElo "2246"]
[BlackElo "2084"]
[TimeControl "180+2"]
[EndTime "15:06:36 PST"]
[Termination "davigator won by resignation"]

1. e4 {[%clk 0:03:01.9]} 1... d5 {[%clk 0:03:00.4]} 2. exd5 {[%clk 0:03:02.5]}
2... Qxd5 {[%clk 0:03:00.8]} 3. Nc3 {[%clk 0:03:03.4]} 3... Qa5 {[%clk
0:03:01.5]} 4. Bc4 {[%clk 0:03:03.1]} 4... c6 {[%clk 0:03:02.5]} 5. d3 {[%clk
0:03:03.9]} 5... Nf6 {[%clk 0:03:03.2]} 6. Bd2 {[%clk 0:03:03.5]} 6... Bg4
{[%clk 0:03:03.8]} 7. f3 {[%clk 0:03:03.9]} 7... Bf5 {[%clk 0:03:04.9]} 8. Nge2
{[%clk 0:03:05.3]} 8... e5 {[%clk 0:03:03.5]} 9. h4 {[%clk 0:02:59.9]} 9... h5
{[%clk 0:03:02.2]} 10. Ng3 {[%clk 0:02:59.5]} 10... Bg6 {[%clk 0:03:01.8]} 11.
Qe2 {[%clk 0:03:00.3]} 11... Nbd7 {[%clk 0:02:53]} 12. O-O-O {[%clk 0:03:00.6]}
12... O-O-O {[%clk 0:02:52.1]} 13. Kb1 {[%clk 0:03:00.9]} 13... Bb4 {[%clk
0:02:51.9]} 14. a3 {[%clk 0:03:00.1]} 14... Bxa3 {[%clk 0:02:43.6]} 15. bxa3
{[%clk 0:03:00.7]} 15... Qxa3 {[%clk 0:02:43.8]} 16. Na2 {[%clk 0:02:59.8]}
16... b5 {[%clk 0:02:35]} 17. Bb4 {[%clk 0:02:53.8]} 17... Qa6 {[%clk
0:02:33.2]} 18. Bb3 {[%clk 0:02:53.7]} 18... c5 {[%clk 0:02:33.7]} 19. Bc3
{[%clk 0:02:53]} 19... c4 {[%clk 0:02:02.5]} 20. dxc4 {[%clk 0:02:53.1]} 20...
Qa3 {[%clk 0:02:02.2]} 21. Ne4 {[%clk 0:02:50.8]} 21... Nc5 {[%clk 0:01:58.4]}
22. Nxc5 {[%clk 0:02:47]} 22... Qxc5 {[%clk 0:01:52.5]} 23. Qxe5 {[%clk
0:02:43.2]} 23... Qxe5 {[%clk 0:01:34.9]} 24. Bxe5 {[%clk 0:02:43.2]} 24... Nd7
{[%clk 0:01:35.5]} 25. Bxg7 {[%clk 0:02:42.6]} 25... Rhg8 {[%clk 0:01:35.9]} 26.
Bd4 {[%clk 0:02:41.8]} 26... bxc4 {[%clk 0:01:31]} 27. Bxc4 {[%clk 0:02:42.4]}
27... Nb6 {[%clk 0:01:30.5]} 28. Bb3 {[%clk 0:02:41]} 28... Nd5 {[%clk
0:01:27.1]} 29. Bxa7 {[%clk 0:02:31.2]} 29... Nf4 {[%clk 0:01:25.8]} 30. g3
{[%clk 0:02:27.5]} 30... Ne2 {[%clk 0:01:25.3]} 31. g4 {[%clk 0:02:25.4]} 31...
Kb7 {[%clk 0:01:14.7]} 32. Be3 {[%clk 0:02:19.5]} 32... Kc6 {[%clk 0:01:12.8]}
33. Rhe1 {[%clk 0:02:13.7]} 33... Ng3 {[%clk 0:01:08.6]} 34. Rxd8 {[%clk
0:02:13.1]} 34... Rxd8 {[%clk 0:01:08.8]} 35. Bf4 {[%clk 0:02:13.9]} 35... hxg4
{[%clk 0:00:58.5]} 36. Bxg3 {[%clk 0:02:12]} 36... gxf3 {[%clk 0:00:59.5]} 37.
Nc3 {[%clk 0:02:10.9]} 37... Rd2 {[%clk 0:00:56.4]} 38. Rf1 {[%clk 0:02:09.6]}
38... Rg2 {[%clk 0:00:50.5]} 39. Rxf3 {[%clk 0:02:10.1]} 1-0

[Event "*** Titled Tuesday Blitz"]
[Site "Chess.com"]
[Date "2020.02.04"]
[Round "9"]
[White "Lovkov_Roman"]
[Black "Zq1"]
[Result "1-0"]
[WhiteElo "2712"]
[BlackElo "2538"]
[TimeControl "180+2"]
[EndTime "15:06:57 PST"]
[Termination "Lovkov_Roman won by resignation"]

1. e4 {[%clk 0:03:01.9]} 1... c5 {[%clk 0:02:59.3]} 2. c3 {[%clk 0:03:02.6]}
2... d5 {[%clk 0:02:58]} 3. exd5 {[%clk 0:03:04.2]} 3... Qxd5 {[%clk 0:02:59.1]}
4. Nf3 {[%clk 0:03:06.1]} 4... Nc6 {[%clk 0:02:58.9]} 5. d4 {[%clk 0:03:06.5]}
5... Bf5 {[%clk 0:02:59.2]} 6. Be3 {[%clk 0:03:05.1]} 6... cxd4 {[%clk
0:02:58.7]} 7. cxd4 {[%clk 0:02:55]} 7... Bxb1 {[%clk 0:02:57.6]} 8. Rxb1 {[%clk
0:02:56.9]} 8... e6 {[%clk 0:02:51.4]} 9. a3 {[%clk 0:02:40.9]} 9... Nf6 {[%clk
0:02:51.5]} 10. Rc1 {[%clk 0:02:36.6]} 10... Be7 {[%clk 0:02:49.1]} 11. Bc4
{[%clk 0:02:37.2]} 11... Qd6 {[%clk 0:02:46.4]} 12. O-O {[%clk 0:02:35.4]} 12...
O-O {[%clk 0:02:46.3]} 13. Qe2 {[%clk 0:02:26.7]} 13... Ng4 {[%clk 0:02:34]} 14.
Rfd1 {[%clk 0:02:20.3]} 14... Nxe3 {[%clk 0:02:31.9]} 15. fxe3 {[%clk
0:02:19.2]} 15... Rad8 {[%clk 0:02:27.3]} 16. Kh1 {[%clk 0:02:15.1]} 16... Bf6
{[%clk 0:02:23.5]} 17. Bb5 {[%clk 0:02:08.3]} 17... g6 {[%clk 0:02:08.3]} 18.
Bxc6 {[%clk 0:02:07.4]} 18... bxc6 {[%clk 0:02:08.6]} 19. Qa6 {[%clk 0:02:07.2]}
19... Rb8 {[%clk 0:01:53.9]} 20. Rxc6 {[%clk 0:02:02.7]} 20... Qd5 {[%clk
0:01:50.8]} 21. b4 {[%clk 0:02:01.5]} 21... Bg7 {[%clk 0:01:44]} 22. Rdc1 {[%clk
0:01:46.6]} 22... Bh6 {[%clk 0:01:25.8]} 23. Qd3 {[%clk 0:01:45.9]} 23... Rfd8
{[%clk 0:01:02.8]} 24. R6c5 {[%clk 0:01:42.1]} 24... Qd6 {[%clk 0:01:00.8]} 25.
Ne5 {[%clk 0:01:41.8]} 25... Rb6 {[%clk 0:00:51.8]} 26. Rf1 {[%clk 0:01:36.4]}
26... Rf8 {[%clk 0:00:47.8]} 27. Nc4 {[%clk 0:01:35.8]} 27... Qe7 {[%clk
0:00:40.9]} 28. Nxb6 {[%clk 0:01:36.4]} 28... axb6 {[%clk 0:00:42]} 29. Rc6
{[%clk 0:01:37]} 29... b5 {[%clk 0:00:38]} 30. Rc5 {[%clk 0:01:34.6]} 30... Qh4
{[%clk 0:00:21.8]} 31. Rxb5 {[%clk 0:01:30]} 31... Bg7 {[%clk 0:00:19.9]} 32.
Rc5 {[%clk 0:01:29.5]} 32... e5 {[%clk 0:00:20.8]} 33. dxe5 {[%clk 0:01:29.1]}
1-0

[Event "*** Titled Tuesday Blitz"]
[Site "Chess.com"]
[Date "2020.02.04"]
[Round "9"]
[White "DonBroca"]
[Black "HashtagChess"]
[Result "1-0"]
[WhiteElo "2140"]
[BlackElo "1616"]
[TimeControl "180+2"]
[EndTime "15:07:02 PST"]
[Termination "DonBroca won by resignation"]

1. e4 {[%clk 0:03:01.9]} 1... c5 {[%clk 0:02:59]} 2. Nf3 {[%clk 0:03:02.3]} 2...
e6 {[%clk 0:02:59.9]} 3. d4 {[%clk 0:03:04.2]} 3... cxd4 {[%clk 0:03:01.6]} 4.
Nxd4 {[%clk 0:03:06.1]} 4... a6 {[%clk 0:03:01.9]} 5. g3 {[%clk 0:03:06.7]} 5...
Nf6 {[%clk 0:02:58.6]} 6. Bg2 {[%clk 0:03:07.6]} 6... Qc7 {[%clk 0:02:54.7]} 7.
O-O {[%clk 0:03:06.4]} 7... Bc5 {[%clk 0:02:48.6]} 8. Nb3 {[%clk 0:03:06.7]}
8... Ba7 {[%clk 0:02:43.5]} 9. Nc3 {[%clk 0:03:06.9]} 9... b5 {[%clk 0:02:43.1]}
10. e5 {[%clk 0:03:03.2]} 10... Nd5 {[%clk 0:02:39.3]} 11. Nxd5 {[%clk
0:03:02.3]} 11... exd5 {[%clk 0:02:41.2]} 12. Qxd5 {[%clk 0:02:43]} 12... Nc6
{[%clk 0:02:36.3]} 13. Bf4 {[%clk 0:02:35.5]} 13... Qb6 {[%clk 0:02:18]} 14. Be3
{[%clk 0:02:18.5]} 14... Qb8 {[%clk 0:02:14.8]} 15. Bxa7 {[%clk 0:02:14.2]}
15... Qxa7 {[%clk 0:02:14]} 16. Qd6 {[%clk 0:02:11]} 16... Qb8 {[%clk
0:02:10.3]} 17. Bxc6 {[%clk 0:01:46.6]} 17... dxc6 {[%clk 0:02:03.4]} 18. Qxc6+
{[%clk 0:01:40.8]} 18... Bd7 {[%clk 0:02:02.6]} 19. Qc5 {[%clk 0:01:38.5]} 19...
Qc8 {[%clk 0:02:01.1]} 20. Rfe1 {[%clk 0:01:32.4]} 20... Be6 {[%clk 0:01:54.7]}
21. Qxc8+ {[%clk 0:01:19]} 21... Rxc8 {[%clk 0:01:53.1]} 22. Nd4 {[%clk
0:01:20.4]} 22... O-O {[%clk 0:01:42.8]} 23. Nxe6 {[%clk 0:01:20.4]} 23... fxe6
{[%clk 0:01:44.7]} 24. Re2 {[%clk 0:01:21.4]} 24... Rc5 {[%clk 0:01:38.2]} 25.
Rd1 {[%clk 0:01:16.3]} 25... Rfc8 {[%clk 0:01:33.6]} 26. c3 {[%clk 0:01:11.2]}
26... R5c6 {[%clk 0:01:23]} 27. Rd7 {[%clk 0:01:07.4]} 27... R8c7 {[%clk
0:01:20.9]} 28. Red2 {[%clk 0:01:05.7]} 28... Kf8 {[%clk 0:01:16.9]} 29. Rxc7
{[%clk 0:01:05.3]} 29... Rxc7 {[%clk 0:01:15.2]} 30. Rd6 {[%clk 0:01:06.6]}
30... Kf7 {[%clk 0:01:13]} 31. Rxa6 {[%clk 0:01:06.4]} 31... Rc5 {[%clk
0:01:14]} 32. f4 {[%clk 0:01:06.3]} 32... Rd5 {[%clk 0:01:15.3]} 33. Rd6 {[%clk
0:00:58.3]} 1-0

[Event "*** Titled Tuesday Blitz"]
[Site "Chess.com"]
[Date "2020.02.04"]
[Round "9"]
[White "arminmusovic"]
[Black "Leonid_Starozhilov"]
[Result "1-0"]
[WhiteElo "2548"]
[BlackElo "2658"]
[TimeControl "180+2"]
[EndTime "15:07:20 PST"]
[Termination "arminmusovic won on time"]

1. a3 {[%clk 0:03:01.9]} 1... d5 {[%clk 0:03:00.4]} 2. Nc3 {[%clk 0:03:01.8]}
2... Nf6 {[%clk 0:03:01.2]} 3. d3 {[%clk 0:03:02.9]} 3... Bf5 {[%clk 0:03:02]}
4. Bg5 {[%clk 0:03:03.7]} 4... Nbd7 {[%clk 0:03:00.6]} 5. f3 {[%clk 0:03:04.6]}
5... h6 {[%clk 0:02:56.2]} 6. Bh4 {[%clk 0:03:05.5]} 6... e6 {[%clk 0:02:52.5]}
7. e4 {[%clk 0:03:05.8]} 7... Bh7 {[%clk 0:02:53]} 8. exd5 {[%clk 0:03:00.7]}
8... exd5 {[%clk 0:02:42.9]} 9. Nxd5 {[%clk 0:02:56.5]} 9... g5 {[%clk
0:02:43.8]} 10. Qe2+ {[%clk 0:02:56]} 10... Be7 {[%clk 0:02:43.8]} 11. Nxe7
{[%clk 0:02:53.3]} 11... Qxe7 {[%clk 0:02:42.8]} 12. Bg3 {[%clk 0:02:54.1]}
12... Nd5 {[%clk 0:02:34]} 13. O-O-O {[%clk 0:02:49.7]} 13... O-O-O {[%clk
0:02:27.8]} 14. Qxe7 {[%clk 0:02:47]} 14... Nxe7 {[%clk 0:02:29.7]} 15. Ne2
{[%clk 0:02:45.1]} 15... Nd5 {[%clk 0:02:27]} 16. Bf2 {[%clk 0:02:43.2]} 16...
Rde8 {[%clk 0:02:16.6]} 17. Nc3 {[%clk 0:02:43.1]} 17... Nf4 {[%clk 0:02:00]}
18. g3 {[%clk 0:02:39.2]} 18... Ne6 {[%clk 0:01:55]} 19. d4 {[%clk 0:02:38.2]}
19... a6 {[%clk 0:01:48.8]} 20. Bh3 {[%clk 0:02:29.9]} 20... Kb8 {[%clk
0:01:25.4]} 21. Rhe1 {[%clk 0:02:24.8]} 21... Nb6 {[%clk 0:00:38.9]} 22. d5
{[%clk 0:02:20.4]} 22... Nd8 {[%clk 0:00:40.3]} 23. Bxb6 {[%clk 0:02:16.9]}
23... cxb6 {[%clk 0:00:41.2]} 24. Kd2 {[%clk 0:02:01.8]} 24... Kc7 {[%clk
0:00:37.3]} 25. Ne4 {[%clk 0:01:50.6]} 25... Bxe4 {[%clk 0:00:37.7]} 26. fxe4
{[%clk 0:01:47.6]} 26... Re5 {[%clk 0:00:37.8]} 27. Kd3 {[%clk 0:01:44.2]} 27...
h5 {[%clk 0:00:29.1]} 28. Kd4 {[%clk 0:01:43.8]} 28... Ree8 {[%clk 0:00:23.3]}
29. e5 {[%clk 0:01:41.5]} 29... g4 {[%clk 0:00:24]} 30. Bg2 {[%clk 0:01:39.9]}
30... f6 {[%clk 0:00:25.4]} 31. e6 {[%clk 0:01:40.7]} 31... Kd6 {[%clk
0:00:24.6]} 32. c4 {[%clk 0:01:41.9]} 32... f5 {[%clk 0:00:22.3]} 33. b4 {[%clk
0:01:42.5]} 33... Rhf8 {[%clk 0:00:23]} 34. c5+ {[%clk 0:01:43.1]} 34... bxc5+
{[%clk 0:00:24.9]} 35. bxc5+ {[%clk 0:01:45]} 35... Kc7 {[%clk 0:00:26.4]} 36.
d6+ {[%clk 0:01:44.4]} 36... Kb8 {[%clk 0:00:27.3]} 37. e7 {[%clk 0:01:45.9]}
1-0

[Event "*** Titled Tuesday Blitz"]
[Site "Chess.com"]
[Date "2020.02.04"]
[Round "9"]
[White "VladDobrov"]
[Black "DanielDardha2005"]
[Result "1-0"]
[WhiteElo "2908"]
[BlackElo "2688"]
[TimeControl "180+2"]
[EndTime "15:07:21 PST"]
[Termination "VladDobrov won by resignation"]

1. e4 {[%clk 0:03:01.9]} 1... c5 {[%clk 0:02:55.4]} 2. a3 {[%clk 0:02:57.8]}
2... g6 {[%clk 0:02:52.9]} 3. h4 {[%clk 0:02:58.3]} 3... h5 {[%clk 0:02:48.4]}
4. Nc3 {[%clk 0:02:58.7]} 4... Bg7 {[%clk 0:02:49.2]} 5. Bc4 {[%clk 0:03:00.6]}
5... Nc6 {[%clk 0:02:49.4]} 6. d3 {[%clk 0:03:01.6]} 6... e6 {[%clk 0:02:49.2]}
7. Nge2 {[%clk 0:03:02]} 7... Nge7 {[%clk 0:02:50.2]} 8. Bg5 {[%clk 0:03:02.8]}
8... a6 {[%clk 0:02:48.6]} 9. Ba2 {[%clk 0:02:59.9]} 9... b5 {[%clk 0:02:49.1]}
10. O-O {[%clk 0:03:00.6]} 10... O-O {[%clk 0:02:49.9]} 11. Qd2 {[%clk
0:03:01.5]} 11... Bb7 {[%clk 0:02:48.9]} 12. Rae1 {[%clk 0:03:01.9]} 12... Qa5
{[%clk 0:02:43.4]} 13. Bb1 {[%clk 0:02:41.7]} 13... d5 {[%clk 0:02:34.2]} 14.
exd5 {[%clk 0:02:37.7]} 14... Nxd5 {[%clk 0:02:27.9]} 15. Bh6 {[%clk 0:02:36.3]}
15... Nxc3 {[%clk 0:02:23.5]} 16. Nxc3 {[%clk 0:02:35.1]} 16... Qc7 {[%clk
0:02:20]} 17. Ne4 {[%clk 0:02:32.3]} 17... Nd4 {[%clk 0:02:16.7]} 18. Ng3 {[%clk
0:02:12.3]} 18... Qc6 {[%clk 0:01:45]} 19. f3 {[%clk 0:02:11.2]} 19... Qd5
{[%clk 0:01:46.3]} 20. c3 {[%clk 0:02:08.9]} 20... Nf5 {[%clk 0:01:44.2]} 21.
Bxg7 {[%clk 0:02:08.2]} 21... Kxg7 {[%clk 0:01:35.6]} 22. Qf2 {[%clk 0:02:04.5]}
22... Nxg3 {[%clk 0:01:35.1]} 23. Qxg3 {[%clk 0:02:06.4]} 23... Rad8 {[%clk
0:01:35.4]} 24. Re5 {[%clk 0:01:59.5]} 24... Qd6 {[%clk 0:01:36.1]} 25. Kh2
{[%clk 0:01:49.8]} 25... Rd7 {[%clk 0:01:28.1]} 26. f4 {[%clk 0:01:47.1]} 26...
Kh7 {[%clk 0:01:12.8]} 27. d4 {[%clk 0:01:46.7]} 27... cxd4 {[%clk 0:01:03.8]}
28. Rxh5+ {[%clk 0:01:47.4]} 28... Kg7 {[%clk 0:01:05.2]} 29. Qg5 {[%clk
0:01:45.2]} 29... Rh8 {[%clk 0:01:06.4]} 30. Rxh8 {[%clk 0:01:43.3]} 30... Kxh8
{[%clk 0:01:08.3]} 31. Rd1 {[%clk 0:01:41.5]} 31... Qc7 {[%clk 0:00:41]} 32. h5
{[%clk 0:01:40]} 32... Rd5 {[%clk 0:00:10.5]} 33. Qf6+ {[%clk 0:01:38.3]} 33...
Kg8 {[%clk 0:00:12]} 34. hxg6 {[%clk 0:01:35.9]} 34... Rh5+ {[%clk 0:00:10.3]}
35. Kg1 {[%clk 0:01:36.3]} 35... fxg6 {[%clk 0:00:12.2]} 36. Qxg6+ {[%clk
0:01:32.4]} 36... Qg7 {[%clk 0:00:13.7]} 37. Qe8+ {[%clk 0:01:34]} 37... Qf8
{[%clk 0:00:14.9]} 38. Qxh5 {[%clk 0:01:35.5]} 38... Qxf4 {[%clk 0:00:16.8]} 39.
Qg6+ {[%clk 0:01:34.4]} 39... Kf8 {[%clk 0:00:18]} 40. Rf1 {[%clk 0:01:35.6]}
1-0

[Event "*** Titled Tuesday Blitz"]
[Site "Chess.com"]
[Date "2020.02.04"]
[Round "9"]
[White "kasparicy"]
[Black "HanSchut"]
[Result "1-0"]
[WhiteElo "2267"]
[BlackElo "2308"]
[TimeControl "180+2"]
[EndTime "15:07:28 PST"]
[Termination "kasparicy won by resignation"]

1. e4 {[%clk 0:03:01.9]} 1... c5 {[%clk 0:03:00.3]} 2. Nf3 {[%clk 0:03:02.9]}
2... d6 {[%clk 0:03:01.3]} 3. d4 {[%clk 0:03:04.8]} 3... cxd4 {[%clk 0:03:03.2]}
4. Nxd4 {[%clk 0:03:06.7]} 4... Nf6 {[%clk 0:03:05]} 5. Nc3 {[%clk 0:03:08.3]}
5... a6 {[%clk 0:03:06.8]} 6. Qf3 {[%clk 0:03:09.7]} 6... e6 {[%clk 0:03:04.4]}
7. g4 {[%clk 0:03:10.1]} 7... h6 {[%clk 0:03:04.9]} 8. h4 {[%clk 0:03:11]} 8...
Nbd7 {[%clk 0:03:04]} 9. g5 {[%clk 0:03:11.3]} 9... Ne5 {[%clk 0:03:02.5]} 10.
Qg2 {[%clk 0:03:06.4]} 10... hxg5 {[%clk 0:02:27.7]} 11. hxg5 {[%clk 0:03:08.3]}
11... Nh5 {[%clk 0:02:25.1]} 12. f4 {[%clk 0:03:02]} 12... Ng6 {[%clk
0:02:25.9]} 13. Qf2 {[%clk 0:02:46.8]} 13... e5 {[%clk 0:02:14.4]} 14. fxe5
{[%clk 0:02:42.5]} 14... dxe5 {[%clk 0:02:14.9]} 15. Nf5 {[%clk 0:02:36.4]}
15... Be7 {[%clk 0:01:33.9]} 16. Rxh5 {[%clk 0:02:15.1]} 16... Rxh5 {[%clk
0:01:32.6]} 17. Nxg7+ {[%clk 0:02:16.3]} 17... Kf8 {[%clk 0:01:30.1]} 18. Nxh5
{[%clk 0:02:18.2]} 18... Bxg5 {[%clk 0:01:30.5]} 19. Bxg5 {[%clk 0:01:47.4]}
19... Qxg5 {[%clk 0:01:30.4]} 20. Bc4 {[%clk 0:01:48.8]} 20... Nh8 {[%clk
0:01:06]} 21. Nf6 {[%clk 0:00:59.3]} 21... Kg7 {[%clk 0:00:46]} 22. Ncd5 {[%clk
0:00:58]} 22... b5 {[%clk 0:00:37.1]} 23. Bb3 {[%clk 0:00:38.4]} 23... Be6
{[%clk 0:00:37.3]} 24. Ke2 {[%clk 0:00:37.6]} 24... Kf8 {[%clk 0:00:18.7]} 25.
Rg1 {[%clk 0:00:35.8]} 1-0